[Event "44th Chess Olympiad Women 2022"]
[Site "Chennai"]
[Date "2022.08.06"]
[Round "8.14"]
[White "Alinasab, Mobina"]
[Black "Houska, Jovanka"]
[Result "0-1"]
[WhiteElo "2364"]
[BlackElo "2360"]
[Annotator "TA"]
[PlyCount "80"]
[EventDate "2022.??.??"]
[TimeControl "60"]

{[%evp 9,80,6,2,8,24,-24,-27,-39,-39,-43,0,-16,20,-12,-22,-14,-16,-35,-19,-39,
-14,-41,-12,-12,-12,-22,-19,-45,-14,-69,-81,-205,-210,-203,-214,-252,-248,-256,
-261,-250,-254,-257,-235,-341,-340,-335,-316,-440,-468,-487,-460,-530,-547,
-539,-523,-1233,-1282,-1751,-1659,-1381,-1509,-1500,-1434,-1370,-1368,-2259,
-1801,-1578,-1163,-1785,-4910,-1760,-1254]} 1. e4 {[%emt 0:00:09]} c6 {[%emt 0:
00:00]} 2. d4 {[%emt 0:00:14]} d5 {[%emt 0:00:06]} 3. f3 {[%emt 0:00:18]} e6 {
[%emt 0:02:49]} 4. Nc3 {[%emt 0:00:15]} Bb4 {[%emt 0:01:30]} 5. Bd2 {[%emt 0:
00:00]} b6 {[%emt 0:05:12]} 6. a3 {[%emt 0:13:32] [#] B12: Caro-Kann: Advance
Variation.} Be7 $146 {[%emt 0:02:51]} ({Predecessor:} 6... Bxc3 7. Bxc3 Ba6 8.
Bxa6 Nxa6 9. Ne2 Nf6 10. Qd3 Nc7 11. O-O a5 12. Rad1 O-O 13. Be1 {1-0 (37)
Adhiban,B (2659)-Abu Sufian,S (2244) Dhaka 2021}) 7. e5 {[%emt 0:01:06]} (7.
Bd3 {should be considered.}) 7... c5 $11 {[%emt 0:00:51]} 8. Nce2 {[%emt 0:00:
00] Black has an edge.} Nc6 {[%emt 0:04:41]} 9. c3 {[%emt 0:00:49]} a5 {
[%emt 0:01:22]} 10. f4 {[%emt 0:03:15]} Ba6 {[%emt 0:04:11]} 11. Nf3 {[%emt 0:
00:00][%cal Yf4f5]} Nh6 {[%emt 0:00:18]} 12. Be3 {[%emt 0:02:48]} O-O $40 {
[%emt 0:04:22] Black is up to no good.} 13. g3 {[%emt 0:04:16]} a4 {[%emt 0:04:
58]} 14. Bh3 {[%emt 0:03:00]} Na5 {[%emt 0:00:32]} 15. Qc2 {[%emt 0:00:00]} Qd7
{[%emt 0:07:31]} 16. g4 {[%emt 0:04:34]} Nc4 {[%emt 0:22:17]} 17. Bc1 {[%emt 0:
08:45]} f6 {[%emt 0:09:19]} 18. exf6 {[%emt 0:04:53]} gxf6 {[%emt 0:00:18]
[%cal Ye6e5] White must now prevent ...e5!} 19. f5 {[%emt 0:00:00]} (19. O-O $1
$11) 19... Nf7 $15 {[%emt 0:05:17] Black is more active.} 20. Nf4 {[%emt 0:18:
31] Now White is beyond hope.} (20. fxe6 $17 Qxe6 21. Qf5 Qxf5 22. gxf5) 20...
e5 $1 $19 {[%emt 0:00:20][%cal Ye6e5,Ye5e4]} 21. Ne6 {[%emt 0:00:25] [#]} e4 $1
{[%emt 0:02:28]} 22. Nh4 {[%emt 0:04:01] [#]} (22. Nxf8 Bxf8 23. Nh4 cxd4 24.
cxd4 Na5) 22... cxd4 $1 {[%emt 0:05:29]} 23. cxd4 {[%emt 0:02:51]} ({Don't play
} 23. Nxf8 Rxf8 24. cxd4 Na5) 23... Rfc8 {[%emt 0:00:00]} 24. Qg2 {[%emt 0:01:
38] aiming for g5.} Ng5 {[%emt 0:00:17]} 25. O-O {[%emt 0:02:58]} Na5 {[%emt 0:
01:49][%cal Yc4a5,Ya5c4,Yc4d2,Yd2f3]} (25... Nxe6 26. fxe6 Qc7 27. g5 $18) 26.
Be3 {[%emt 0:01:21]} (26. Nxg5 {is a better defense.} Nb3 27. Ne6 Bxf1 28. Qxf1
Nxa1 29. Bh6) 26... Bxf1 {[%emt 0:01:03] Chess con chili.} ({Less strong is} 
26... Nxe6 27. fxe6 Qc7 28. Rf5 $16) 27. Rxf1 {[%emt 0:00:02]} Nc4 {[%emt 0:00:
07]} (27... Nxe6 28. fxe6 Qb7 29. g5 $18) 28. Bf4 {[%emt 0:02:23]} Rc6 {
[%emt 0:01:48] Black is clearly winning.} 29. Qg3 {[%emt 0:01:30]} Rac8 {
[%emt 0:01:53]} 30. Ng2 {[%emt 0:00:00]} Bd6 {[%emt 0:03:54]} 31. Bxd6 {
[%emt 0:01:34]} Qxd6 {[%emt 0:00:29]} 32. Ngf4 {[%emt 0:00:32]} Nd2 {[%emt 0:
00:22]} 33. Rf2 {[%emt 0:01:33]} Ndf3+ {[%emt 0:00:50]} 34. Kh1 {[%emt 0:00:33]
} Rc1+ {[%emt 0:02:34]} 35. Bf1 {[%emt 0:00:11]} R8c2 {[%emt 0:00:17]} 36. Rxc2
{[%emt 0:00:50]} Rxc2 {[%emt 0:00:00]} 37. Be2 {[%emt 0:00:32]} Nxe6 {[%emt 0:
00:36]} 38. fxe6 {[%emt 0:00:18]} Nxd4 {[%emt 0:00:44]} 39. g5 {[%emt 0:00:44]}
Nxe2 {[%emt 0:00:19]} 40. Nxe2 {[%emt 0:00:30]} Qxg3 {[%emt 0:00:05] Weighted
Error Value: White=0.83/Black=0.33} 0-1

[Event "44th Chess Olympiad Women 2022"]
[Site "Chennai"]
[Date "2022.08.06"]
[Round "8.14"]
[White "Mahdian, Anousha"]
[Black "Yao, Lan"]
[Result "1-0"]
[WhiteElo "2161"]
[BlackElo "2274"]
[Annotator "RC"]
[PlyCount "115"]
[EventDate "2022.??.??"]
[TimeControl "60"]

1. d4 {[%emt 0:00:03]} Nf6 {[%emt 0:00:04]} 2. Nf3 {[%emt 0:00:03]} e6 {
[%emt 0:00:10]} 3. g3 {[%emt 0:00:04]} d5 {[%emt 0:01:33]} 4. Bg2 {[%emt 0:00:
00]} a6 {[%emt 0:00:41]} 5. O-O {[%emt 0:00:25]} b5 {[%emt 0:13:14]} 6. a4 {
[%emt 0:01:28]} Bb7 {[%emt 0:10:02]} 7. Ne5 {[%emt 0:29:44]} Nbd7 {[%emt 0:00:
00]} 8. Nd3 {[%emt 0:13:48]} Bd6 {[%emt 0:07:10]} 9. Bf4 {[%emt 0:01:01]} O-O {
[%emt 0:03:00]} 10. Nd2 {[%emt 0:04:58]} Bxf4 {[%emt 0:08:23]} 11. gxf4 {
[%emt 0:01:43]} Ne4 {[%emt 0:04:29]} 12. Nb3 {[%emt 0:14:58]} Rc8 {[%emt 0:00:
00]} 13. f3 {[%emt 0:08:50]} Nd6 {[%emt 0:03:19]} 14. Nbc5 {[%emt 0:08:38]}
Nxc5 {[%emt 0:03:24]} 15. Nxc5 {[%emt 0:00:15]} Bc6 {[%emt 0:00:38]} 16. a5 {
[%emt 0:04:42]} Ra8 {[%emt 0:01:00]} 17. b3 {[%emt 0:03:39]} Qe7 {[%emt 0:00:
00]} 18. e4 {[%emt 0:00:57]} b4 {[%emt 0:04:37]} 19. Qd2 {[%emt 0:01:02]} Rfb8
{[%emt 0:01:21]} 20. Rfe1 {[%emt 0:00:29]} Nb5 {[%emt 0:10:29]} 21. Qxb4 {
[%emt 0:03:04]} Qf6 {[%emt 0:00:40]} 22. Rad1 {[%emt 0:00:19]} Qxf4 {[%emt 0:
00:00]} 23. Nd3 {[%emt 0:00:35]} Qh4 {[%emt 0:02:25]} 24. Qc5 {[%emt 0:00:19]}
Bb7 {[%emt 0:04:26]} 25. Nf2 {[%emt 0:00:39]} dxe4 {[%emt 0:01:47]} 26. fxe4 {
[%emt 0:00:09]} Rd8 {[%emt 0:00:43]} 27. c4 {[%emt 0:01:13]} Nd6 {[%emt 0:00:
00]} 28. Qxc7 {[%emt 0:00:30]} Rac8 {[%emt 0:02:40]} 29. Qb6 {[%emt 0:00:02]}
Qg5 {[%emt 0:00:52]} 30. Qb4 {[%emt 0:00:31]} f5 {[%emt 0:00:30]} 31. Qd2 {
[%emt 0:00:33]} Qg6 {[%emt 0:00:18]} 32. Kh1 {[%emt 0:01:00]} Nxe4 {[%emt 0:00:
00]} 33. Nxe4 {[%emt 0:00:04]} fxe4 {[%emt 0:00:11]} 34. Qe3 {[%emt 0:00:13]}
Rf8 {[%emt 0:00:31]} 35. Rf1 {[%emt 0:00:56]} Qg4 {[%emt 0:01:18]} 36. Qg3 {
[%emt 0:00:39]} Qh5 {[%emt 0:00:33]} 37. Rde1 {[%emt 0:00:29]} Rf5 {[%emt 0:00:
00]} 38. Qd6 {[%emt 0:00:40]} Qf7 {[%emt 0:00:34]} 39. Qg3 {[%emt 0:00:29]} Rf8
{[%emt 0:00:16]} 40. Rg1 {[%emt 0:00:15]} Rf4 {[%emt 0:00:38]} 41. Ref1 {
[%emt 0:12:45]} Rf5 {[%emt 0:06:21]} 42. Bh3 {[%emt 0:08:06]} e3+ {[%emt 0:00:
00]} 43. d5 {[%emt 0:00:04]} e2 {[%emt 0:02:07]} 44. Rxf5 {[%emt 0:00:13]} exf5
{[%emt 0:00:07]} 45. Qf2 {[%emt 0:07:11]} Qe7 {[%emt 0:11:17]} 46. Re1 {
[%emt 0:00:11]} Re8 {[%emt 0:01:03]} 47. Bg2 {[%emt 0:04:25]} h6 {[%emt 0:00:
00]} 48. Bf3 {[%emt 0:00:41]} Qa3 {[%emt 0:00:32]} 49. Rxe2 {[%emt 0:00:38]}
Rf8 {[%emt 0:00:31]} 50. Qe3 {[%emt 0:00:39]} Qxa5 {[%emt 0:00:39]} 51. Qe6+ {
[%emt 0:00:10]} Kh7 {[%emt 0:00:42]} 52. Qe7 {[%emt 0:00:39]} Rb8 {[%emt 0:00:
00]} 53. Qe5 {[%emt 0:00:25]} Rf8 {[%emt 0:00:19]} 54. Rg2 {[%emt 0:00:16]} Rf7
{[%emt 0:00:43]} 55. Bh5 {[%emt 0:00:24]} Rf6 {[%emt 0:00:36]} 56. Qe7 {
[%emt 0:00:48]} Qa1+ {[%emt 0:00:20]} 57. Rg1 {[%emt 0:00:02]} Re6 {[%emt 0:00:
00]} 58. Qxe6 {[%emt 0:00:18]} 1-0

[Event "44th Chess Olympiad Women 2022"]
[Site "Chennai"]
[Date "2022.08.06"]
[Round "8.14"]
[White "Toma, Katarzyna"]
[Black "Masoumi, Sahar"]
[Result "1-0"]
[WhiteElo "2303"]
[BlackElo "1956"]
[Annotator "RC"]
[PlyCount "101"]
[EventDate "2022.??.??"]
[TimeControl "60"]

1. e4 {[%emt 0:00:03]} c5 {[%emt 0:00:06]} 2. Nf3 {[%emt 0:00:06]} Nc6 {
[%emt 0:00:05]} 3. Nc3 {[%emt 0:00:40]} e6 {[%emt 0:00:18]} 4. d4 {[%emt 0:00:
00]} cxd4 {[%emt 0:00:07]} 5. Nxd4 {[%emt 0:00:04]} Nf6 {[%emt 0:00:10]} 6.
Nxc6 {[%emt 0:00:35]} bxc6 {[%emt 0:00:07]} 7. Bd3 {[%emt 0:00:05]} d5 {
[%emt 0:00:21]} 8. O-O {[%emt 0:00:07]} Be7 {[%emt 0:01:05]} 9. Qe2 {[%emt 0:
00:00]} O-O {[%emt 0:01:13]} 10. b3 {[%emt 0:00:17]} Nd7 {[%emt 0:02:31]} 11.
Bb2 {[%emt 0:03:53]} Nc5 {[%emt 0:01:42]} 12. Rfe1 {[%emt 0:05:41]} Nxd3 {
[%emt 0:11:48]} 13. Qxd3 {[%emt 0:02:06]} f5 {[%emt 0:02:23]} 14. exd5 {
[%emt 0:06:59]} exd5 {[%emt 0:01:09]} 15. Ne2 {[%emt 0:07:30]} Qd6 {[%emt 0:00:
00]} 16. Nf4 {[%emt 0:12:41]} Bg5 {[%emt 0:10:30]} 17. Nh5 {[%emt 0:08:16]} Bh6
{[%emt 0:02:00]} 18. Be5 {[%emt 0:11:06]} Qg6 {[%emt 0:02:42]} 19. Nf4 {
[%emt 0:00:19]} Qf7 {[%emt 0:02:39]} 20. Qd4 {[%emt 0:02:42]} Re8 {[%emt 0:00:
00]} 21. Nd3 {[%emt 0:02:23]} a5 {[%emt 0:05:08]} 22. a4 {[%emt 0:03:07]} Ba6 {
[%emt 0:08:51]} 23. Nc5 {[%emt 0:01:51]} f4 {[%emt 0:00:59]} 24. f3 {[%emt 0:
00:00]} Bg5 {[%emt 0:02:23]} 25. Rad1 {[%emt 0:03:18]} Ra7 {[%emt 0:13:47]} 26.
Bd6 {[%emt 0:05:56]} Be2 {[%emt 0:13:24]} 27. Rd2 {[%emt 0:07:45]} Ba6 {
[%emt 0:00:46]} 28. Rxe8+ {[%emt 0:06:02]} Qxe8 {[%emt 0:00:01]} 29. Qf2 {
[%emt 0:00:21]} Bc8 {[%emt 0:01:36]} 30. Re2 {[%emt 0:02:47]} Qg6 {[%emt 0:00:
00]} 31. Nd3 {[%emt 0:00:14]} Ra8 {[%emt 0:00:39]} 32. Bxf4 {[%emt 0:01:06]}
Bxf4 {[%emt 0:00:39]} 33. Nxf4 {[%emt 0:00:05]} Qf7 {[%emt 0:00:05]} 34. Nd3 {
[%emt 0:00:30]} Ba6 {[%emt 0:00:26]} 35. Ne5 {[%emt 0:00:12]} Qf5 {[%emt 0:00:
00]} 36. Nxc6 {[%emt 0:00:32]} Qg5 {[%emt 0:00:26]} 37. Re1 {[%emt 0:00:24]}
Rf8 {[%emt 0:00:28]} 38. Qd4 {[%emt 0:01:49]} Bb7 {[%emt 0:00:40]} 39. Ne7+ {
[%emt 0:00:27]} Kh8 {[%emt 0:00:10]} 40. Qe5 {[%emt 0:00:21]} Qd2 {[%emt 0:00:
00]} 41. Nf5 {[%emt 0:30:39]} Qg5 {[%emt 0:30:41]} 42. Nd4 {[%emt 0:00:00]} Qd2
{[%emt 0:00:00]} 43. Ne6 {[%emt 0:00:00]} Rg8 {[%emt 0:00:00]} 44. Nd8 {
[%emt 0:00:00]} Rf8 {[%emt 0:00:00]} 45. Nxb7 {[%emt 0:00:00]} h6 {[%emt 0:00:
00]} 46. Nd6 {[%emt 0:00:00]} Rf6 {[%emt 0:00:00]} 47. Nb5 {[%emt 0:00:00]}
Qxc2 {[%emt 0:00:00]} 48. Qxd5 {[%emt 0:00:00]} Rf5 {[%emt 0:00:00]} 49. Qa8+ {
[%emt 0:00:00]} Kh7 {[%emt 0:00:00]} 50. Qe4 {[%emt 0:00:00]} Qc5+ {[%emt 0:00:
00]} 51. Nd4 {[%emt 0:00:00]} 1-0

[Event "44th Chess Olympiad Women 2022"]
[Site "Chennai"]
[Date "2022.08.06"]
[Round "8.14"]
[White "Varney, Zoe"]
[Black "Zahedifar, Anahita"]
[Result "1/2-1/2"]
[WhiteElo "2045"]
[BlackElo "2160"]
[Annotator "RC"]
[PlyCount "162"]
[EventDate "2022.??.??"]
[TimeControl "60"]

1. e4 {[%emt 0:00:03]} c6 {[%emt 0:00:09]} 2. Nf3 {[%emt 0:00:05]} d5 {[%emt 0:
00:00]} 3. d3 {[%emt 0:00:04]} Qc7 {[%emt 0:02:49]} 4. g3 {[%emt 0:01:26]} Bg4
{[%emt 0:01:29]} 5. Bg2 {[%emt 0:01:28]} e6 {[%emt 0:00:49]} 6. O-O {[%emt 0:
00:00]} Nf6 {[%emt 0:01:38]} 7. Qe1 {[%emt 0:07:10]} Be7 {[%emt 0:04:20]} 8.
Nfd2 {[%emt 0:05:19]} e5 {[%emt 0:11:14]} 9. h3 {[%emt 0:06:56]} Be6 {[%emt 0:
00:00]} 10. Nc3 {[%emt 0:03:52]} O-O {[%emt 0:04:54]} 11. f4 {[%emt 0:03:29]}
exf4 {[%emt 0:01:48]} 12. gxf4 {[%emt 0:04:21]} Nh5 {[%emt 0:07:25]} 13. Nb3 {
[%emt 0:12:34]} dxe4 {[%emt 0:04:54]} 14. dxe4 {[%emt 0:03:20]} a5 {[%emt 0:00:
00]} 15. Be3 {[%emt 0:09:37]} a4 {[%emt 0:01:53]} 16. Nd4 {[%emt 0:14:30]} a3 {
[%emt 0:04:55]} 17. b3 {[%emt 0:01:32]} Bd7 {[%emt 0:03:44]} 18. Qf2 {[%emt 0:
00:00]} Bb4 {[%emt 0:05:07]} 19. Nde2 {[%emt 0:03:54]} Na6 {[%emt 0:06:04]} 20.
Rad1 {[%emt 0:01:53]} Be7 {[%emt 0:13:09]} 21. Bf3 {[%emt 0:04:08]} Bxh3 {
[%emt 0:01:21]} 22. Bxh5 {[%emt 0:00:06]} Bxf1 {[%emt 0:00:04]} 23. Rxf1 {
[%emt 0:01:23]} Qa5 {[%emt 0:02:52]} 24. Bf3 {[%emt 0:01:53]} Bc5 {[%emt 0:00:
00]} 25. e5 {[%emt 0:00:45]} Bxe3 {[%emt 0:01:23]} 26. Qxe3 {[%emt 0:00:02]}
Qc5 {[%emt 0:00:46]} 27. Qxc5 {[%emt 0:00:06]} Nxc5 {[%emt 0:00:04]} 28. Ne4 {
[%emt 0:00:16]} Nxe4 {[%emt 0:00:52]} 29. Bxe4 {[%emt 0:00:02]} Rad8 {[%emt 0:
00:00]} 30. Bd3 {[%emt 0:01:45]} Rfe8 {[%emt 0:01:44]} 31. Nc3 {[%emt 0:02:44]}
Rd4 {[%emt 0:02:48]} 32. Ne2 {[%emt 0:01:43]} Rdd8 {[%emt 0:00:47]} 33. Rf3 {
[%emt 0:01:41]} Kf8 {[%emt 0:02:13]} 34. Kf2 {[%emt 0:00:28]} h6 {[%emt 0:00:
00]} 35. Rh3 {[%emt 0:00:34]} Ke7 {[%emt 0:00:35]} 36. Ng3 {[%emt 0:00:30]} Kd7
{[%emt 0:00:40]} 37. Nf5 {[%emt 0:00:34]} g5 {[%emt 0:00:22]} 38. Nd6 {[%emt 0:
00:00]} Re7 {[%emt 0:00:21]} 39. Nxb7 {[%emt 0:00:06]} Rg8 {[%emt 0:00:51]} 40.
Nd6 {[%emt 0:02:05]} gxf4 {[%emt 0:00:24]} 41. Nc4 {[%emt 0:05:37]} Rh8 {
[%emt 0:02:16]} 42. Bf5+ {[%emt 0:00:30]} Kc7 {[%emt 0:00:48]} 43. Kf3 {
[%emt 0:00:48]} Ree8 {[%emt 0:04:07]} 44. Kxf4 {[%emt 0:02:34]} Rd8 {[%emt 0:
00:00]} 45. Rd3 {[%emt 0:04:47]} Rxd3 {[%emt 0:02:25]} 46. Bxd3 {[%emt 0:01:32]
} Kd7 {[%emt 0:01:45]} 47. Bf5+ {[%emt 0:00:36]} Ke7 {[%emt 0:00:22]} 48. Be4 {
[%emt 0:09:44]} Rg8 {[%emt 0:06:27]} 49. Bxc6 {[%emt 0:03:04]} Rg1 {[%emt 0:00:
00]} 50. Nxa3 {[%emt 0:01:26]} Ra1 {[%emt 0:03:21]} 51. Nc4 {[%emt 0:00:23]}
Rxa2 {[%emt 0:00:28]} 52. Ne3 {[%emt 0:00:06]} Rb2 {[%emt 0:02:53]} 53. Be4 {
[%emt 0:00:23]} h5 {[%emt 0:00:40]} 54. Nf5+ {[%emt 0:00:32]} Kd7 {[%emt 0:00:
00]} 55. Kg5 {[%emt 0:00:31]} Ke6 {[%emt 0:00:59]} 56. Kf4 {[%emt 0:00:29]} Kd7
{[%emt 0:00:14]} 57. Ne3 {[%emt 0:01:10]} Ke7 {[%emt 0:03:17]} 58. Kg5 {
[%emt 0:00:47]} Rb1 {[%emt 0:00:52]} 59. Nc4 {[%emt 0:01:04]} Re1 {[%emt 0:00:
00]} 60. Bf3 {[%emt 0:00:06]} Rc1 {[%emt 0:00:33]} 61. Ne3 {[%emt 0:01:53]} Ke6
{[%emt 0:03:20]} 62. Kf4 {[%emt 0:00:33]} h4 {[%emt 0:00:15]} 63. Bg4+ {
[%emt 0:00:06]} Ke7 {[%emt 0:00:08]} 64. Nf5+ {[%emt 0:01:13]} Kd8 {[%emt 0:00:
00]} 65. Nxh4 {[%emt 0:01:05]} Rxc2 {[%emt 0:00:06]} 66. e6 {[%emt 0:01:23]}
fxe6 {[%emt 0:00:35]} 67. Bxe6 {[%emt 0:00:03]} Ke7 {[%emt 0:00:24]} 68. Bc4 {
[%emt 0:00:06]} Kd6 {[%emt 0:00:12]} 69. Nf5+ {[%emt 0:00:55]} Kc5 {[%emt 0:00:
00]} 70. Ne3 {[%emt 0:00:04]} Rb2 {[%emt 0:00:25]} 71. Nd5 {[%emt 0:01:07]} Rc2
{[%emt 0:00:38]} 72. Ne3 {[%emt 0:00:56]} Rb2 {[%emt 0:00:34]} 73. Nf5 {
[%emt 0:00:41]} Rc2 {[%emt 0:02:39]} 74. Bg8 {[%emt 0:00:21]} Rg2 {[%emt 0:00:
00]} 75. Bf7 {[%emt 0:00:10]} Kb4 {[%emt 0:00:34]} 76. Ke3 {[%emt 0:00:20]} Rg1
{[%emt 0:00:32]} 77. Bc4 {[%emt 0:01:13]} Kc3 {[%emt 0:00:49]} 78. Ke4 {
[%emt 0:00:44]} Rb1 {[%emt 0:00:39]} 79. Nd4 {[%emt 0:00:31]} Re1+ {[%emt 0:00:
00]} 80. Ne2+ {[%emt 0:00:04]} Rxe2+ {[%emt 0:00:11]} 81. Bxe2 {[%emt 0:00:03]}
Kxb3 {[%emt 0:00:03]} 1/2-1/2

[Event "44th Chess Olympiad Women 2022"]
[Site "Chennai"]
[Date "2022.08.06"]
[Round "8.15"]
[White "Divya Deshmukh"]
[Black "Dejanovic, Tereza"]
[Result "1-0"]
[WhiteElo "2319"]
[BlackElo "2011"]
[Annotator "RC"]
[PlyCount "61"]
[EventDate "2022.??.??"]
[TimeControl "60"]

1. e4 {[%emt 0:00:14]} c5 {[%emt 0:00:01]} 2. Nf3 {[%emt 0:00:04]} d6 {[%emt 0:
00:00]} 3. d4 {[%emt 0:00:03]} cxd4 {[%emt 0:00:04]} 4. Nxd4 {[%emt 0:00:10]}
Nf6 {[%emt 0:00:03]} 5. Nc3 {[%emt 0:00:08]} a6 {[%emt 0:00:04]} 6. f3 {
[%emt 0:00:02]} e6 {[%emt 0:00:18]} 7. Be3 {[%emt 0:00:04]} Be7 {[%emt 0:01:11]
} 8. Qd2 {[%emt 0:01:18]} Qc7 {[%emt 0:06:48]} 9. g4 {[%emt 0:00:20]} h6 {
[%emt 0:00:56]} 10. O-O-O {[%emt 0:05:42]} Nc6 {[%emt 0:04:10]} 11. h4 {
[%emt 0:01:21]} b5 {[%emt 0:13:13]} 12. Bd3 {[%emt 0:03:34]} Ne5 {[%emt 0:00:
00]} 13. g5 {[%emt 0:04:02]} Nxd3+ {[%emt 0:00:41]} 14. Qxd3 {[%emt 0:00:26]}
Nh5 {[%emt 0:09:41]} 15. gxh6 {[%emt 0:02:04]} g6 {[%emt 0:01:09]} 16. Nde2 {
[%emt 0:28:59]} Qa5 {[%emt 0:11:04]} 17. Bg5 {[%emt 0:07:00]} Bxg5+ {[%emt 0:
00:00]} 18. hxg5 {[%emt 0:00:39]} b4 {[%emt 0:00:07]} 19. Qxd6 {[%emt 0:02:31]}
bxc3 {[%emt 0:13:44]} 20. Qc6+ {[%emt 0:00:58]} Ke7 {[%emt 0:00:09]} 21. Qxa8 {
[%emt 0:00:41]} Qxg5+ {[%emt 0:05:22]} 22. Kb1 {[%emt 0:00:14]} Qc5 {[%emt 0:
00:00]} 23. Nxc3 {[%emt 0:00:50]} Rxh6 {[%emt 0:00:50]} 24. Na4 {[%emt 0:00:35]
} Qc7 {[%emt 0:00:41]} 25. Nb6 {[%emt 0:00:24]} Rh8 {[%emt 0:02:09]} 26. Nxc8+
{[%emt 0:01:28]} Rxc8 {[%emt 0:00:10]} 27. Qxa6 {[%emt 0:00:02]} Qxc2+ {
[%emt 0:00:10]} 28. Ka1 {[%emt 0:00:01]} Qc7 {[%emt 0:06:54]} 29. Qa3+ {
[%emt 0:01:17]} Kf6 {[%emt 0:01:41]} 30. Qe3 {[%emt 0:00:12]} Rb8 {[%emt 0:00:
00]} 31. Rc1 {[%emt 0:04:29]} 1-0

[Event "44th Chess Olympiad Women 2022"]
[Site "Chennai"]
[Date "2022.08.06"]
[Round "8.15"]
[White "Ivekovic, Tihana"]
[Black "Gomes, Mary Ann"]
[Result "1/2-1/2"]
[WhiteElo "2082"]
[BlackElo "2324"]
[Annotator "RC"]
[PlyCount "88"]
[EventDate "2022.??.??"]
[TimeControl "60"]

1. d4 {[%emt 0:00:02]} Nf6 {[%emt 0:00:13]} 2. c4 {[%emt 0:00:05]} c5 {[%emt 0:
00:00]} 3. d5 {[%emt 0:00:05]} e6 {[%emt 0:00:04]} 4. Nc3 {[%emt 0:00:07]} exd5
{[%emt 0:00:09]} 5. cxd5 {[%emt 0:00:05]} d6 {[%emt 0:00:15]} 6. Nf3 {[%emt 0:
00:00]} g6 {[%emt 0:00:07]} 7. e4 {[%emt 0:00:06]} a6 {[%emt 0:00:05]} 8. Bg5 {
[%emt 0:00:14]} Bg7 {[%emt 0:00:39]} 9. Nd2 {[%emt 0:02:58]} h6 {[%emt 0:02:54]
} 10. Bh4 {[%emt 0:00:05]} Nbd7 {[%emt 0:05:08]} 11. Be2 {[%emt 0:02:52]} b5 {
[%emt 0:04:42]} 12. Qc2 {[%emt 0:00:31]} Qe7 {[%emt 0:00:16]} 13. O-O {[%emt 0:
00:00]} g5 {[%emt 0:01:36]} 14. Bg3 {[%emt 0:00:05]} h5 {[%emt 0:02:43]} 15. h4
{[%emt 0:04:23]} Ng4 {[%emt 0:06:47]} 16. Nf3 {[%emt 0:04:36]} gxh4 {[%emt 0:
00:00]} 17. Nxh4 {[%emt 0:15:42]} Be5 {[%emt 0:04:36]} 18. Nf5 {[%emt 0:02:27]}
Qf6 {[%emt 0:00:13]} 19. Bh4 {[%emt 0:19:51]} Qg6 {[%emt 0:00:12]} 20. f4 {
[%emt 0:06:05]} Bd4+ {[%emt 0:00:06]} 21. Kh1 {[%emt 0:00:05]} Nb6 {[%emt 0:00:
00]} 22. Bxb5+ {[%emt 0:09:47]} axb5 {[%emt 0:06:55]} 23. Nxb5 {[%emt 0:00:05]}
Kf8 {[%emt 0:14:52]} 24. Nbxd4 {[%emt 0:04:47]} cxd4 {[%emt 0:05:31]} 25. Ne7 {
[%emt 0:06:37]} Qh7 {[%emt 0:00:12]} 26. Qc6 {[%emt 0:00:59]} Qxe4 {[%emt 0:00:
00]} 27. Qxb6 {[%emt 0:03:05]} Ba6 {[%emt 0:00:47]} 28. Rae1 {[%emt 0:03:31]}
Qc2 {[%emt 0:00:52]} 29. Qxd4 {[%emt 0:01:09]} Rh6 {[%emt 0:02:52]} 30. Rc1 {
[%emt 0:04:57]} Qd3 {[%emt 0:02:02]} 31. Qxd3 {[%emt 0:02:02]} Bxd3 {[%emt 0:
00:00]} 32. Rfe1 {[%emt 0:00:11]} Rxa2 {[%emt 0:04:06]} 33. Rc3 {[%emt 0:03:04]
} Bh7 {[%emt 0:00:22]} 34. Bg5 {[%emt 0:00:23]} Rxb2 {[%emt 0:00:40]} 35. Bxh6+
{[%emt 0:01:42]} Nxh6 {[%emt 0:00:06]} 36. Rh3 {[%emt 0:02:16]} Ng4 {[%emt 0:
00:00]} 37. Rxh5 {[%emt 0:00:24]} Be4 {[%emt 0:00:58]} 38. Rh8+ {[%emt 0:00:15]
} Kxe7 {[%emt 0:00:21]} 39. Rxe4+ {[%emt 0:00:06]} Kf6 {[%emt 0:01:04]} 40. Re1
{[%emt 0:00:27]} Kf5 {[%emt 0:00:18]} 41. Rd8 {[%emt 0:08:23]} Kxf4 {[%emt 0:
00:00]} 42. Rxd6 {[%emt 0:00:14]} Kg3 {[%emt 0:00:17]} 43. Ra6 {[%emt 0:00:15]}
Nf2+ {[%emt 0:00:06]} 44. Kg1 {[%emt 0:00:08]} Nh3+ {[%emt 0:00:05]} 1/2-1/2